bitfinex/quotes_ETHUSD_20220123
["timestamp","ask_amount","ask_price","bid_price","bid_amount"]
[1642981323694,1.73662226,2529.5,2529.1,1.26865498]
[1642981324098,1.73662226,2529.5,2528.8,3.44841657]
[1642981324300,2.00830956,2529.5,2528.8,3.44841657]
[1642981324496,2.00830956,2529.5,2528.8,2.44841657]
[1642981325097,2.00830956,2529.5,2528.9,1.17790839]
[1642981325299,2.00830956,2529.7,2528.9,1.17790839]
[1642981325532,0.158,2529.6,2528.8,2.14841657]
[1642981325738,1.48582,2529.5,2528.8,2.14841657]
[1642981325938,1.7176,2529.4,2528.8,2.14841657]
[1642981326236,0.19628,2529.3,2528.8,2.14841657]
[1642981326436,0.158,2529.2,2528.8,1.657e-05]
[1642981326635,2.1600995,2529.2,2528.8,1.657e-05]
[1642981326842,5.9338995,2529.2,2528.8,1.657e-05]
[1642981327040,2.1600995,2529.2,2528.8,1.657e-05]
[1642981327239,2.0020995,2529.2,2528.8,1.657e-05]
[1642981327440,2.0020995,2529.2,2529.0,1.09967479]
[1642981327841,2.0020995,2529.2,2529.1,1.51452165]
[1642981328444,2.22970606,2529.2,2529.1,3.11452165]
[1642981328842,2.22970606,2529.2,2529.1,1.6]
[1642981329041,5.06999036,2530.1,2529.1,0.6]
[1642981329042,2.22970606,2530.0,2529.1,0.6]
[1642981329297,5.02351034,2529.9,2529.1,0.3]
[1642981329504,8.07328682,2529.8,2528.8,0.31270483]
[1642981329698,10.30299288,2529.8,2529.5,1.34027137]
[1642981329901,7.2532164,2529.8,2529.5,1.34027137]
[1642981330298,7.2532164,2529.8,2529.5,1.64027137]
[1642981330299,2.22970606,2529.8,2529.5,1.64027137]
[1642981330502,2.22970606,2529.8,2529.5,1.94027137]
[1642981330698,1.78271725,2529.8,2529.5,1.94027137]
[1642981331099,5.02351034,2530.4,2529.5,1.94027137]
[1642981331299,5.02351034,2530.3,2529.5,1.94027137]
[1642981331500,6.80622759,2530.3,2529.6,1.54989934]
[1642981331898,6.80622759,2530.3,2529.6,2.54989934]
[1642981332107,1.78271725,2530.3,2529.7,0.0712848]
[1642981332496,1.81241153,2530.3,2529.7,0.0712848]
[1642981332697,1.81241153,2530.3,2529.6,2.70789934]
[1642981332936,1.81241153,2530.3,2529.6,2.77918414]
[1642981333134,1.81241153,2530.3,2530.2,1.40208427]
[1642981333534,1.81241153,2530.3,2530.2,1.70208427]
[1642981334137,1.81241153,2530.3,2530.2,2.00208427]
[1642981334340,5.02351034,2530.6,2530.2,2.00208427]
[1642981334642,5.02351034,2530.6,2530.5,0.06251303]
[1642981335140,6.69801379,2531.0,2530.6,4.0]
[1642981335539,6.69801379,2531.0,2530.7,1.0]
[1642981335739,6.69801379,2531.0,2530.7,1.3712848]
[1642981336146,7.43,2531.7,2530.9,7.0]
[1642981336348,0.83607611,2532.1,2531.0,23.74]
[1642981336545,8.05886702,2531.8,2531.1,0.02988664]
[1642981336786,11.54487611,2532.2,2531.7,7.05]
[1642981336991,10.83008948,2532.6,2531.9,0.02630294]
[1642981337190,10.83008948,2532.6,2532.1,0.02894543]
[1642981337385,10.83008948,2532.6,2532.1,0.59894543]
[1642981337587,10.83008948,2532.6,2532.5,4.30864847]
[1642981337786,10.83008948,2532.6,2532.5,4.60864847]
[1642981337984,10.83008948,2532.6,2532.5,5.90864847]
[1642981338186,10.83008948,2532.6,2532.5,1.95864847]
[1642981338387,10.83008948,2532.6,2531.9,1.1579]
[1642981338687,10.83008948,2532.6,2532.2,0.3]
[1642981338888,10.83008948,2532.6,2531.9,0.6]
[1642981339086,10.83008948,2532.6,2531.8,0.38819997]
[1642981339294,10.83008948,2532.6,2531.9,0.1579]
[1642981339492,10.83008948,2532.6,2532.0,1.62121594]
[1642981339696,10.83008948,2532.6,2532.1,23.3279]
[1642981339893,10.83008948,2532.6,2532.1,0.1579]
[1642981340443,10.83008948,2532.6,2532.0,1.10223232]
[1642981340648,10.83008948,2532.6,2532.0,2.10223232]
[1642981341145,10.83008948,2532.6,2532.0,3.57948898]
[1642981341545,10.83008948,2532.6,2532.0,1.10223232]
[1642981342547,10.83008948,2532.6,2532.0,2.48914554]
[1642981342748,10.83008948,2532.6,2531.8,0.24609997]
[1642981342948,10.83008948,2532.6,2531.8,0.1579]
[1642981343150,3.9105,2532.5,2531.8,0.1579]
[1642981343349,4.0684,2532.5,2531.8,0.1579]
[1642981343851,0.355,2532.3,2531.8,0.1579]
[1642981344048,0.1579,2532.5,2531.8,0.1579]
[1642981344291,10.83008948,2532.6,2531.8,0.1579]
[1642981344492,14.25871904,2532.6,2531.8,0.1579]
[1642981344896,14.25871904,2532.6,2531.8,1.49760186]
[1642981345092,14.25871904,2532.6,2532.0,1.43525536]
[1642981345490,14.25871904,2532.6,2532.0,1.73525536]
[1642981345693,14.25871904,2532.6,2531.6,1.0]
[1642981345895,0.36678832,2532.5,2530.8,3.8767]
[1642981346192,0.36678832,2532.5,2530.8,3.7188]
[1642981346193,1.36678832,2532.5,2530.8,3.7188]
[1642981346397,0.01850357,2532.4,2530.4,0.1579]
[1642981346597,0.01850357,2532.4,2530.1,0.0128716]
[1642981346598,0.0120911,2531.9,2530.1,0.0128716]
[1642981346793,1.4179661,2531.0,2530.3,2.70444054]
[1642981347397,1.4179661,2531.0,2530.1,0.0128716]
[1642981348234,2.4548661,2531.0,2530.1,0.0128716]
[1642981348435,2.6128661,2531.0,2530.1,1.15528224]
[1642981348639,2.6128661,2531.0,2530.1,2.63334068]
[1642981348937,2.6128661,2531.0,2529.7,0.24619997]
[1642981349338,2.6128661,2531.0,2529.7,23.41619997]
[1642981349839,2.6128661,2531.0,2529.7,0.24619997]
[1642981350044,1.1949,2531.0,2529.9,1.47054124]
[1642981351044,1.1949,2531.0,2530.0,0.3]
[1642981351239,1.45176479,2530.4,2530.0,0.3]
[1642981351786,1.1949,2531.0,2529.8,0.6]
[1642981351985,1.1949,2531.0,2529.7,1.81586606]
[1642981352285,1.1949,2531.0,2529.8,0.0321766]
[1642981352884,1.32850636,2530.6,2529.9,1.29474112]
[1642981353085,1.32850636,2530.6,2530.0,0.3]
[1642981353284,1.32850636,2530.6,2529.7,0.08819997]
[1642981353489,1.32850636,2530.6,2529.6,0.158]
[1642981354090,0.158,2530.5,2529.6,0.158]
[1642981354491,3.919,2530.5,2529.6,0.158]
[1642981355297,1.40006272,2530.1,2529.6,0.158]
[1642981355537,1.40006272,2530.1,2529.2,1.0]
[1642981355738,1.40006272,2530.1,2529.2,1.3]
[1642981356136,3.6717224,2530.4,2529.2,1.0]
[1642981356335,0.158,2530.4,2529.2,1.0]
[1642981356538,0.158,2530.4,2529.2,1.3]
[1642981357139,3.38358018,2530.4,2529.2,1.3]
[1642981357337,1.356514,2529.8,2529.2,1.3]
[1642981357537,1.356514,2529.8,2529.2,1.0]
[1642981357739,1.356514,2529.8,2529.2,1.3]
[1642981358740,1.356514,2529.8,2529.2,1.0]
[1642981358939,1.356514,2529.8,2529.2,1.3]
[1642981359202,1.356514,2529.8,2528.9,0.01282996]
[1642981359395,1.24804277,2529.2,2528.8,0.158]
[1642981359795,3.26230744,2530.2,2528.8,0.158]
[1642981359996,0.158,2530.2,2528.8,0.158]
[1642981360195,0.158,2530.3,2529.0,7.43]
[1642981360394,3.26230744,2530.3,2529.0,7.43]
[1642981360599,3.26230744,2530.3,2529.2,1.49095503]
[1642981360793,1.1098186,2529.7,2529.2,1.49095503]
[1642981360993,1.1098186,2529.7,2529.2,1.79095503]
[1642981361695,0.158,2530.3,2529.2,1.79095503]
[1642981361898,5.0125,2530.8,2530.0,0.12145734]
[1642981361899,0.158,2530.8,2530.0,0.12145734]
[1642981362105,0.158,2530.8,2529.6,0.01247148]
[1642981362106,3.6628,2531.1,2529.8,0.01268585]
[1642981362298,3.6628,2531.1,2530.0,0.02626648]
[1642981362497,3.6628,2531.1,2530.2,0.01473909]
[1642981362696,1.51275734,2530.5,2530.1,0.0712848]
[1642981363144,1.51275734,2530.5,2529.7,2.3992848]
[1642981363340,1.51275734,2530.5,2529.8,1.47289571]
[1642981363541,1.51275734,2530.5,2529.8,2.47289571]
[1642981364143,1.51275734,2530.5,2529.8,1.0]
[1642981364546,1.51275734,2530.5,2529.7,0.2292848]
[1642981365144,1.51275734,2530.5,2529.7,0.158]
[1642981365545,1.12606672,2530.1,2529.7,0.158]
[1642981365945,12.69281127,2531.1,2529.7,0.158]
[1642981366346,3.8208,2531.1,2529.7,23.17]
[1642981366695,3.8208,2531.1,2529.8,1.0]
[1642981366890,1.4495151,2530.0,2529.8,1.3]
[1642981367089,0.01202836,2530.7,2529.8,0.7581]
[1642981367291,0.01202836,2530.7,2529.8,0.3]
[1642981367488,0.01202836,2530.7,2529.5,0.158]
[1642981367688,0.01202836,2530.7,2529.8,1.46135136]
[1642981367889,0.158,2531.0,2529.8,1.46135136]
[1642981368092,7.24482058,2531.1,2529.8,1.46135136]
[1642981368294,7.24482058,2531.1,2529.5,0.158]
[1642981368492,1.46658769,2530.2,2529.5,0.158]
[1642981368690,3.8208,2531.1,2529.5,0.158]
[1642981369295,3.8208,2531.1,2530.0,1.27401575]
[1642981369497,0.06202512,2531.2,2530.0,1.87401575]
[1642981369701,1.25685402,2531.0,2530.2,1.49580833]
[1642981369899,1.25685402,2531.0,2530.2,1.79580833]
[1642981370097,1.25685402,2531.0,2530.3,0.07097894]
[1642981370296,1.25685402,2531.0,2529.9,0.158]
[1642981370540,1.25685402,2531.0,2529.7,0.57]
[1642981370742,1.25685402,2531.0,2529.8,0.158]
[1642981371140,1.25685402,2531.0,2530.0,1.22613872]
[1642981371640,1.25685402,2531.0,2530.3,1.38608252]
[1642981371841,1.25685402,2531.0,2530.0,1.82613872]
[1642981372843,1.25685402,2531.0,2530.0,3.00060745]
[1642981373041,1.25685402,2531.0,2530.1,1.0]
[1642981374296,1.25685402,2531.0,2530.4,1.49055372]
[1642981374500,1.25685402,2531.0,2530.4,1.79055372]
[1642981374693,1.25685402,2531.0,2530.3,1.0]
[1642981375097,3.38428866,2530.9,2530.0,0.3]
[1642981375295,0.158,2530.8,2529.8,0.158]
[1642981375493,0.04304184,2530.7,2529.3,0.0123558]
[1642981375697,0.158,2530.9,2529.3,0.0123558]
[1642981375899,1.14582621,2530.1,2529.6,1.28318718]
[1642981376494,1.14582621,2530.1,2529.6,1.88318718]
[1642981376894,5.1653,2530.9,2529.6,1.88318718]
[1642981377942,1.14918303,2530.3,2529.6,1.88318718]
[1642981378144,5.1653,2530.9,2529.6,1.88318718]
[1642981378345,5.0073,2530.9,2529.7,23.328]
[1642981378544,5.0073,2530.9,2529.8,1.0]
[1642981378748,5.0073,2530.9,2529.8,1.37097894]
[1642981378945,5.0073,2530.9,2529.8,0.67097894]
[1642981379145,1.46660041,2530.4,2529.8,0.07097894]
[1642981379352,0.158,2531.1,2529.8,1.50592985]
[1642981379549,0.04999999,2531.2,2529.8,1.80592985]
[1642981379766,0.04999999,2531.2,2529.8,2.80592985]
[1642981380250,1.53409484,2530.9,2530.4,0.32922519]
[1642981380450,1.48409485,2530.9,2529.9,1.0]
[1642981380649,1.48409485,2530.9,2530.0,0.3]
[1642981381253,1.48409485,2530.9,2529.8,0.67097894]
[1642981381450,1.48409485,2530.9,2529.8,1.71602291]
[1642981381698,1.48409485,2530.9,2530.2,1.10199329]
[1642981382090,1.48409485,2530.9,2530.2,1.40199329]
[1642981382690,1.48409485,2530.9,2530.2,2.79504899]
[1642981383091,1.48409485,2530.9,2530.3,1.0]
[1642981383589,1.48409485,2530.9,2530.2,0.3]
[1642981383896,1.48409485,2530.9,2529.7,0.158]
[1642981384090,1.3024267,2530.5,2529.8,1.22684326]
[1642981384295,1.3024267,2530.5,2529.8,1.2978222]
[1642981384694,0.158,2531.1,2529.8,24.4678222]
[1642981384896,0.158,2531.1,2529.8,0.07097894]
[1642981385297,0.158,2531.1,2530.2,1.47543358]
[1642981385744,0.158,2531.1,2530.2,23.17]
[1642981385945,1.2247,2531.2,2530.6,1.23253156]
[1642981386147,4.00049996,2531.4,2530.6,1.23253156]
[1642981386345,4.00049996,2531.4,2530.6,1.83253156]
[1642981387046,4.00049996,2531.4,2530.9,0.3]
[1642981387245,4.00049996,2531.4,2530.6,1.83253156]
[1642981387855,0.01253089,2532.1,2530.7,27.49122995]
[1642981388049,0.158,2532.5,2532.1,0.41533946]
[1642981388249,21.90808948,2532.6,2531.0,23.17]
[1642981388450,17.97128948,2532.6,2531.1,4.49286145]
[1642981388647,17.97128948,2532.6,2531.1,5.56377862]
[1642981388849,19.27426504,2532.6,2531.9,1.33349697]
[1642981389055,14.46278948,2532.6,2531.9,1.93349697]
[1642981389295,14.46278948,2532.6,2532.0,1.22178388]
[1642981389695,10.83008948,2532.6,2532.0,1.22178388]
[1642981390000,0.01269663,2532.8,2532.3,1.41768737]
[1642981390195,1.32077483,2533.0,2532.0,2.22178388]
[1642981390999,3.8859,2533.1,2532.8,0.39062849]
[1642981391998,11.2563,2533.7,2532.8,0.69062849]
[1642981392199,5.05142668,2533.7,2533.0,1.26205897]
[1642981392399,3.9354,2533.7,2533.0,1.56205897]
[1642981392597,3.9354,2533.7,2533.0,1.86205897]
[1642981393046,3.9354,2533.7,2533.0,0.3]
[1642981393240,3.9354,2533.7,2532.8,0.39062849]
[1642981393442,4.0931,2533.7,2532.8,0.69062849]
[1642981393641,3.9354,2533.7,2532.8,0.69062849]
[1642981394443,1.23635936,2533.6,2532.9,1.09276357]
[1642981394643,1.23635936,2533.6,2532.9,1.39276357]
[1642981394843,1.23635936,2533.6,2532.9,1.69276357]
[1642981396045,3.9354,2533.7,2532.9,1.69276357]
[1642981397089,3.9354,2533.7,2532.9,2.69276357]
[1642981397488,3.9354,2533.7,2532.9,1.69276357]
[1642981397687,3.9354,2533.7,2533.0,1.0]
[1642981397888,3.9354,2533.7,2532.9,1.69276357]
[1642981398187,3.9354,2533.7,2533.6,1.22178388]
[1642981398390,0.17022501,2534.1,2533.6,1.22178388]
[1642981398595,0.17022501,2534.1,2533.6,1.52178388]
[1642981398596,0.01252501,2534.1,2533.6,1.52178388]
[1642981398892,0.1577,2534.4,2533.9,1.34055183]
[1642981399091,3.6351,2534.5,2533.9,0.3]
[1642981399296,3.6351,2534.5,2533.7,1.0]
[1642981399498,3.6351,2534.5,2533.6,1.82178388]
[1642981399499,3.5851,2534.5,2533.6,1.82178388]
[1642981399996,3.5851,2534.5,2533.6,24.99178388]
[1642981400196,3.5851,2534.5,2534.4,0.39062849]
[1642981400440,1.21288032,2534.9,2534.4,0.20708849]
[1642981400641,1.21288032,2534.9,2533.7,0.1577]
[1642981400844,1.21288032,2534.9,2533.6,0.6]
[1642981400845,0.1577,2534.8,2533.6,0.3]
[1642981401042,1.47223435,2534.5,2533.8,1.48257676]
[1642981401244,0.1577,2534.8,2533.8,1.48257676]
[1642981401446,0.1577,2534.8,2533.8,2.08257676]
[1642981401642,0.1577,2534.8,2534.4,1.38981209]
[1642981402050,8.3312,2535.2,2534.4,1.38981209]
[1642981402051,0.1577,2535.1,2534.4,1.98981209]
[1642981402247,8.0836,2535.2,2534.5,1.10478698]
[1642981402248,3.6954,2535.2,2534.5,1.10478698]
[1642981402447,3.6954,2535.2,2535.1,1.21527883]
[1642981402650,3.6954,2535.2,2534.5,1.1577]
[1642981402849,3.6954,2535.2,2534.5,1.0]
[1642981403045,3.6954,2535.2,2534.4,1.98981209]
[1642981403245,3.6954,2535.2,2534.4,1.68981209]
[1642981403451,3.6954,2535.2,2534.4,0.3]
[1642981403650,1.39185433,2535.1,2534.4,1.09279117]
[1642981403847,1.39185433,2535.1,2534.0,0.4577]
[1642981404296,3.6954,2535.2,2534.1,0.07089296]
[1642981404494,3.6954,2535.2,2534.1,2.91789296]
[1642981404795,3.6954,2535.2,2534.2,23.47]
[1642981404992,3.6954,2535.2,2534.3,0.3]
[1642981405190,3.6954,2535.2,2534.6,1.32346218]
[1642981405593,3.6954,2535.2,2534.6,1.92346218]
[1642981405791,3.6954,2535.2,2534.9,1.32319348]
[1642981405994,3.6954,2535.2,2534.6,0.6]
[1642981406294,3.6954,2535.2,2534.6,0.3]
[1642981406492,3.6954,2535.2,2534.2,0.474]
[1642981406694,3.6954,2535.2,2533.9,0.1577]
[1642981406895,0.01232226,2535.0,2533.9,1.42887237]
[1642981407194,0.01232226,2535.0,2533.7,1.46596208]
[1642981407195,1.14406507,2534.4,2533.7,1.46596208]
[1642981407397,1.14406507,2534.4,2533.5,0.474]
[1642981407952,1.14406507,2534.4,2533.0,0.08819997]
[1642981407953,0.17065421,2534.3,2533.0,0.08819997]
[1642981408158,3.84275421,2534.3,2533.1,1.27887599]
[1642981408353,1.3073109,2533.8,2533.1,2.66611309]
[1642981408751,1.3073109,2533.8,2533.1,1.27887599]
[1642981409152,0.1577,2534.1,2533.1,1.27887599]
[1642981409356,0.1577,2534.1,2533.0,0.08819997]
[1642981409560,0.1577,2534.2,2533.1,0.1577]
[1642981409756,0.1577,2534.2,2533.3,0.01252267]
[1642981409961,3.6721,2534.3,2533.4,0.1577]
[1642981410156,3.6721,2534.3,2533.3,0.17022267]
[1642981410357,3.6721,2534.3,2533.8,1.21638033]
[1642981410558,3.6721,2534.3,2533.9,1.42887237]
[1642981410755,0.1577,2534.8,2533.9,1.72887237]
[1642981410957,4.9692,2534.9,2533.9,2.72887237]
[1642981411157,4.9692,2534.9,2533.9,1.0]
[1642981411360,4.9692,2534.9,2533.4,1.3]
[1642981411560,0.01262032,2534.4,2533.4,0.6]
[1642981411811,5.2692,2534.9,2533.4,0.3]
[1642981411812,0.1577,2534.3,2533.4,0.3]
[1642981412011,4.8115,2534.9,2533.8,1.34998122]
[1642981412012,0.1577,2534.8,2533.8,1.34998122]
[1642981412209,0.1577,2534.8,2533.5,0.07108417]
[1642981412210,1.11027104,2534.2,2533.5,0.07108417]
[1642981412411,4.1403,2534.8,2533.4,1.48657551]
[1642981412627,4.1403,2534.8,2533.4,1.78657551]
[1642981413312,1.39773668,2534.6,2533.9,1.39419619]
[1642981413529,0.1577,2534.5,2533.9,1.69419619]
[1642981413917,0.1577,2534.5,2533.9,0.3]
[1642981414117,1.39773668,2534.6,2533.4,1.0]
[1642981414317,4.8115,2534.9,2533.5,23.17]
[1642981414517,4.8115,2534.9,2533.9,1.36212608]
[1642981414716,4.8115,2534.9,2533.4,4.70732716]
[1642981414916,4.8115,2534.9,2533.4,1.67108417]
[1642981415125,4.8115,2534.9,2533.4,0.67108417]
[1642981415316,4.8115,2534.9,2533.5,0.1577]
[1642981415542,1.51366317,2534.3,2533.6,1.78763765]
[1642981415744,0.01217136,2534.6,2533.6,1.25872182]
[1642981415945,0.01217136,2534.6,2533.6,1.18763765]
[1642981416145,4.9692,2534.9,2533.6,1.18763765]
[1642981416542,4.9692,2534.9,2533.7,23.17]
[1642981416745,1.47695133,2534.6,2534.0,2.23953262]
[1642981416945,1.47695133,2534.6,2533.7,0.7577]
[1642981417146,1.37695133,2534.6,2533.5,0.1577]
[1642981417349,1.37695133,2534.6,2533.3,0.1577]
[1642981417548,1.37695133,2534.6,2533.2,0.58647016]
[1642981417549,0.1577,2534.5,2533.2,0.1577]
[1642981417948,1.19267256,2533.3,2533.2,0.1577]
[1642981418547,0.1577,2533.9,2533.2,0.1577]
[1642981418755,0.1577,2533.9,2532.5,0.01208901]
[1642981418756,4.9037,2534.3,2533.1,0.01254693]
[1642981418949,3.7281,2534.3,2533.2,0.07108417]
[1642981419621,3.7281,2534.3,2533.2,1.49276713]
[1642981419622,1.5306823,2533.9,2533.2,1.49276713]
[1642981419797,3.7281,2534.3,2533.2,1.49276713]
[1642981419998,3.7281,2534.3,2533.2,2.09276713]
[1642981420401,3.7281,2534.3,2533.3,1.12265752]
[1642981420597,3.7281,2534.3,2533.3,2.12265752]
[1642981420797,1.26792424,2534.4,2533.7,1.10443432]
[1642981421004,3.808,2534.8,2534.1,1.12265752]
[1642981421204,7.55937698,2534.9,2533.8,5.15280593]
[1642981421205,3.627,2534.9,2533.8,5.15280593]
[1642981421404,3.627,2534.9,2533.8,1.54508417]
[1642981421599,3.627,2534.9,2533.9,0.07108417]
[1642981421803,3.627,2534.9,2533.9,0.96178417]
[1642981422000,3.627,2534.9,2534.3,1.8161235]
[1642981422301,3.627,2534.9,2534.3,0.6]
[1642981422502,3.627,2534.9,2534.0,1.3]
[1642981422701,3.627,2534.9,2534.0,0.3]
[1642981422953,3.627,2534.9,2534.0,1.0]
[1642981423151,3.627,2534.9,2533.9,2.94748075]
[1642981423551,3.627,2534.9,2534.4,1.43321123]
[1642981423956,1.1466,2535.2,2534.4,2.03321123]
[1642981424159,8.0549038,2535.6,2534.4,2.5782954]
[1642981424358,4.2858038,2535.6,2534.4,2.5782954]
[1642981424554,4.2858038,2535.6,2534.5,1.0]
[1642981424758,1.50644741,2535.5,2534.8,1.37875397]
[1642981424960,1.50644741,2535.5,2534.5,1.0]
[1642981425156,1.50644741,2535.5,2534.4,1.074]
[1642981425757,1.50644741,2535.5,2534.5,0.07108417]
[1642981425958,1.22884232,2535.0,2534.5,0.07108417]
[1642981426159,0.1577,2535.4,2534.3,1.77688919]
[1642981426359,0.1577,2535.5,2534.3,1.77688919]
[1642981426796,0.1577,2535.5,2534.2,0.3]
[1642981426999,0.1577,2535.5,2534.1,0.3]
[1642981427195,0.1577,2535.5,2534.0,0.1577]
[1642981427798,1.43091954,2534.4,2534.0,0.1577]
[1642981427998,0.0126102,2535.2,2533.9,1.6]
[1642981428203,0.0126102,2535.2,2533.9,0.3]
[1642981428403,0.01226754,2534.6,2533.8,0.3424]
[1642981428601,0.1577,2534.5,2533.8,0.3424]
[1642981428803,0.05767429,2534.4,2533.8,0.3424]
[1642981429001,0.04350375,2534.2,2533.8,0.3424]
[1642981429203,0.1577,2534.1,2533.8,0.3424]
[1642981429402,1.43061735,2534.1,2533.8,0.3424]
[1642981429802,0.1577,2534.5,2533.8,0.3424]
[1642981431854,3.9675,2534.8,2533.8,0.3424]
[1642981431855,0.1577,2534.8,2533.9,3.93597827]
[1642981432054,0.1577,2535.4,2534.1,0.0123913]
[1642981432252,3.9223,2535.7,2534.2,3.98881454]
[1642981432447,3.9223,2535.7,2534.3,28.90011454]
[1642981432645,3.9223,2535.7,2534.4,0.6317]
[1642981432846,0.42450381,2535.6,2535.1,1.42887237]
[1642981433048,0.42450381,2535.6,2535.1,1.72887237]
[1642981433049,0.1577,2535.6,2535.1,1.72887237]
[1642981433247,0.13819996,2536.0,2535.1,0.3]
[1642981433450,1.41211899,2535.4,2534.7,1.34633375]
[1642981433646,1.41211899,2535.4,2534.7,0.3]
[1642981434052,0.1577,2535.6,2534.5,0.3]
[1642981434525,0.1577,2535.9,2534.4,0.474]
[1642981434725,0.13819996,2536.0,2534.3,1.4577]
[1642981434726,0.13819996,2536.0,2534.6,0.07128573]
[1642981434922,0.13819996,2536.0,2534.7,0.474]
[1642981435121,1.36903551,2536.0,2535.3,1.1826626]
[1642981435522,0.13819996,2536.0,2535.8,1.42887237]
[1642981435721,0.13819996,2536.0,2535.3,1.7826626]
[1642981436522,0.01248165,2536.2,2535.3,1.7826626]
[1642981436523,1.35328272,2536.2,2535.3,1.7826626]
[1642981436725,0.01248165,2536.2,2535.3,1.7826626]
[1642981437322,0.01248165,2536.2,2535.3,0.6]
[1642981437522,0.26680381,2535.8,2535.2,1.20870157]
[1642981437952,0.1577,2536.1,2535.2,1.50870157]
[1642981438150,0.1577,2536.1,2535.2,1.80870157]
[1642981438351,1.43597909,2535.8,2535.2,1.80870157]
[1642981438552,1.43597909,2535.8,2535.2,0.3]
[1642981438759,1.43597909,2535.8,2534.5,0.1577]
[1642981438965,0.06194684,2535.6,2534.4,3.6179]
[1642981439161,0.1577,2535.5,2534.1,0.1577]
[1642981439458,1.15961508,2535.4,2534.7,1.38353839]
[1642981439658,1.15961508,2535.4,2535.0,1.18377185]
[1642981439860,1.15961508,2535.4,2534.1,0.1577]
[1642981440060,1.15961508,2535.4,2534.2,3.35688035]
[1642981440360,1.15961508,2535.4,2534.3,1.0]
[1642981440562,1.15961508,2535.4,2534.3,1.3]
[1642981440964,1.17365795,2534.9,2534.3,0.3]
[1642981441162,1.17365795,2534.9,2534.3,1.0]
[1642981441366,1.17365795,2534.9,2533.8,4.28038573]
[1642981441565,1.17365795,2534.9,2534.6,1.42887237]
[1642981441798,13.26962165,2535.6,2534.6,1.42887237]
[1642981441999,3.58542165,2535.6,2534.1,0.00114484]
[1642981442198,0.16970858,2535.6,2534.1,0.00114484]
[1642981442397,0.1577,2535.6,2534.2,0.2288376]
[1642981442598,17.9112,2535.7,2534.2,0.2288376]
[1642981442800,0.1577,2535.6,2534.2,0.0711376]
[1642981443002,1.24073629,2534.9,2534.5,1.42887237]
[1642981443205,1.24073629,2534.9,2534.1,0.00114484]
[1642981443406,0.00021687,2534.1,2533.8,0.4]
[1642981443605,0.00021687,2534.1,2534.0,0.00114484]
[1642981444200,1.45206952,2534.1,2534.0,0.00114484]
[1642981445204,5.85206952,2534.1,2534.0,0.00114484]
[1642981446550,1.45206952,2534.1,2534.0,0.00114484]
[1642981447146,4.70206952,2534.1,2534.0,0.00114484]
[1642981448151,8.45206952,2534.1,2534.0,0.00114484]
[1642981448447,4.70206952,2534.1,2534.0,0.00114484]
[1642981448651,1.60976952,2534.1,2534.0,0.00114484]
[1642981449298,1.45206952,2534.1,2534.0,0.00114484]
[1642981450300,8.55206952,2534.1,2534.0,0.00114484]
[1642981450501,8.85206952,2534.1,2534.0,0.00114484]
[1642981450698,8.74834952,2534.1,2534.0,0.00114484]
[1642981451603,8.90604952,2534.1,2534.0,0.00114484]
[1642981451998,1.60976952,2534.1,2534.0,0.00114484]
[1642981452201,5.80976952,2534.1,2534.0,0.00114484]
[1642981452803,5.65206952,2534.1,2534.0,0.00114484]
[1642981454158,1.45206952,2534.1,2534.0,0.00114484]
[1642981454455,0.00021687,2534.1,2534.0,0.00114484]
[1642981455056,0.00021687,2534.1,2534.0,7.10114484]
[1642981455455,0.00021687,2534.1,2534.0,9.75144484]
[1642981456055,0.00021687,2534.1,2534.0,1.05144484]
[1642981456902,0.00021687,2534.1,2534.0,0.00114484]
[1642981457100,0.00021687,2534.1,2534.0,4.75114484]
[1642981457500,0.00021687,2534.1,2534.0,6.35114484]
[1642981458102,0.00021687,2534.1,2534.0,8.70114484]
[1642981458700,0.00021687,2534.1,2534.0,8.70114474]
[1642981460103,0.00021687,2534.1,2534.0,6.35114474]
[1642981462155,0.00021687,2534.1,2534.0,8.70114474]
[1642981462350,0.00021687,2534.1,2534.0,6.35114474]
[1642981462558,0.00021687,2534.1,2534.0,0.00114474]
[1642981462763,0.00021687,2534.1,2534.0,0.00114466]
[1642981462959,0.15791687,2534.1,2534.0,0.00114466]
[1642981463153,5.10791687,2534.1,2534.0,0.00114466]
[1642981463756,6.42397493,2534.1,2534.0,0.00114466]
[1642981463959,8.57397493,2534.1,2534.0,0.00114466]
[1642981464405,6.42397493,2534.1,2534.0,0.00114466]
[1642981465106,1.47397493,2534.1,2534.0,0.00114466]
[1642981465807,1.31627493,2534.1,2534.0,0.00114466]
[1642981466010,11.9100606,2534.1,2534.0,0.00114466]
[1642981466310,8.41627493,2534.1,2534.0,0.00114466]
[1642981466508,8.57397493,2534.1,2534.0,0.00114466]
[1642981467109,1.27910685,2533.3,2533.1,1.0]
[1642981467316,6.80032451,2534.0,2533.1,1.0]
[1642981467317,0.1579,2533.9,2533.1,1.00114466]
[1642981467514,0.1579,2533.9,2533.1,1.60114466]
[1642981468396,1.68505484,2533.9,2533.1,1.30114466]
[1642981468591,1.68505484,2533.9,2533.1,2.93374545]
[1642981469292,1.68505484,2533.9,2533.5,0.09627158]
[1642981469492,0.15802451,2534.0,2533.5,0.09741624]
[1642981469691,0.00032451,2534.0,2533.5,0.09741624]
[1642981469897,0.00032451,2534.0,2533.5,0.00114466]
[1642981470899,1.53767489,2534.0,2533.5,0.00114466]
[1642981471096,0.00032451,2534.0,2533.6,0.05255572]
[1642981471395,0.00032451,2534.0,2533.6,0.00114466]
[1642981477467,1.22153383,2533.8,2533.6,0.00114466]
[1642981477664,5.7577,2533.7,2533.6,0.00114466]
[1642981478162,0.1577,2533.7,2533.6,0.00114466]
[1642981478965,7.5577,2533.7,2533.6,4.466e-05]
[1642981479209,7.14727655,2533.6,2532.1,0.1577]
[1642981479419,0.07860469,2533.4,2531.9,3.6195]
[1642981479619,0.1579,2533.5,2532.0,3.35937538]
[1642981479620,0.05034507,2533.2,2532.0,3.35937538]
[1642981479813,0.19628,2533.5,2532.2,1.37090804]
[1642981479814,1.21158627,2532.7,2532.2,1.37090804]
[1642981481118,0.1579,2533.1,2532.6,4.75796433]
[1642981481323,3.9303,2533.7,2532.6,4.75796433]
[1642981481519,3.9303,2533.7,2532.7,1.0]
[1642981482112,1.29798488,2533.2,2532.7,1.0]